Cogmind - Beta 10.2 @@@ ROGUE MODE // 2022.01.17 @ 13:15:07 Player: Sara Result: Destroyed by Y-45 Defender with Heavy Assault Rifle Performance ------------- Evolutions (1) 500 Regions Visited (3) 600 Robots Destroyed (46) 230 Value Destroyed (742) 742 Prototype IDs (2) 40 Alien Tech Used (0) 0 Bonus (0) 0 TOTAL SCORE: 2112 Bonus ------- None Cogmind --------- Core Integrity 0/400 Matter 270/300 Energy 60/100 System Corruption 3% Temperature Cool (0) Movement Core (50) Location -9/Materials Parts ------- > --- POWER (1) -------- (None) > --- PROPULSION (2) --- (None) > --- UTILITY (4) ------ Improved Terrain Scanner Terrain Scan Processor Improved Terrain Scan Processor Improved Terrain Scan Processor > --- WEAPON (2) ------- (None) > --- INVENTORY (4) ---- Improved Flight Unit Signal Interpreter Mining Laser Peak State ------------ > --- POWER ------------ Light Ion Engine > --- PROPULSION ------- Hover Unit Hover Unit > --- UTILITY ---------- Small Storage Unit Improved Sensor Array Improved Terrain Scanner Terrain Scan Processor > --- WEAPON ----------- Improved EM Shotgun Improved EM Shotgun > --- INVENTORY -------- Compact Wheel Improved Flight Unit Signal Interpreter Improved Terrain Scanner Datajack Mining Laser [Rating: 16] Favorites ----------- Power Light Ion Engine Engine Light Ion Engine Propulsion Compact Wheel Leg Aluminum Leg Wheel Compact Wheel Hover Unit Hover Unit Flight Unit Improved Flight Unit Utility Small Storage Unit Device Improved Terrain Scanner Storage Small Storage Unit Processor Terrain Scan Processor Weapon Light Assault Rifle Energy Gun Improved EM Shotgun Ballistic Gun Light Assault Rifle Launcher Rocket Launcher Special Weapon Mining Laser Special Melee Weapon Datajack Build | -11 -10 -10 -9 ------- Run | Scr Mat Min Mat Slots Evolved 2 | . . . 2 Power . | . . . . Propulsion . | . . . . Utility 2 | . . . 2 Weapon . | . . . . Parts Attached 35 | 5 11 4 15 Power 1 | . 1 . . Engine 1 | . 1 . . Core . | . . . . Reactor . | . . . . Propulsion 12 | 2 8 . 2 Treads . | . . . . Leg . | . . . . Wheel 7 | 2 5 . . Hover 4 | . 3 . 1 Flight 1 | . . . 1 Utility 8 | 1 . 1 6 Device 4 | 1 . 1 2 Storage . | . . . . Processor 4 | . . . 4 Hackware . | . . . . Protection . | . . . . Artifact . | . . . . Weapon 14 | 2 2 3 7 Energy Gun 4 | . . . 4 Energy Cannon . | . . . . Ballistic Gun 6 | 2 2 1 1 Ballistic Cannon . | . . . . Launcher 1 | . . . 1 Special Weapon 2 | . . 1 1 Impact Weapon . | . . . . Slashing Weapon . | . . . . Piercing Weapon . | . . . . Special Melee Weapon 1 | . . 1 . Unidentified Prototypes 2 | . . . 2 Parts Lost 10 | . 2 . 8 Power 2 | . 1 . 1 Propulsion 3 | . 1 . 2 Utility 2 | . . . 2 Weapon 3 | . . . 3 Highest Loss Streak 8 | . 2 . 8 Average Slot Usage (%) 94 | . 98 100 89 Engine 11 | . 13 14 10 Wheel 6 | . 22 . . Hover 17 | . 4 28 20 Device 17 | . 14 14 21 Storage 12 | . 14 14 10 Processor 2 | . . . 4 Energy Gun 6 | . . . 12 Ballistic Gun 15 | . 28 26 3 Special Weapon 2 | . . 1 4 Naked Turns . | . . . . Heaviest Build 15 | 11 10 10 15 Greatest Support 32 | 32 32 12 12 Greatest Overweight (x) 2 | . 1 . 2 Average Overweight (x) . | . . . . Largest Inventory Capacity 6 | 6 6 6 6 Average Capacity 5 | 6 6 6 5 Most Carried 6 | 6 6 6 6 Average Carried 5 | 5 5 5 4 Final Capacity 6 | 6 6 6 4 Final Carried 6 | 6 6 6 3 Class Distribution -------------------- 56% | Mutant 33% | Scavenger-Mutant 7% | Scavenger-Scout Dominant Class ---------------- Mutant | -10/Materials Scavenger-Mutant | -10/Mines Scavenger-Mutant | -9/Materials Resources | -11 -10 -10 -9 ----------- Run | Scr Mat Min Mat Matter Collected 743 | 323 200 60 160 Remotely . | . . . . Salvage Created 1517 | 353 578 87 499 Parts 98 | 37 29 2 30 Haulers Intercepted . | . . . . Recyclers Shooed 4 | 1 1 2 . Parts Field Recycled . | . . . . Retrieved Matter . | . . . . Parts Self-Destructed . | . . . . Prevented . | . . . . Kills | -11 -10 -10 -9 ------- Run | Scr Mat Min Mat Combat Hostiles Destroyed 17 | . 5 1 11 Guns 10 | . 5 1 4 AOE 7 | . . . 7 Classes Destroyed 8 | 3 4 . 1 Worker 6 | 4 2 . . Builder 5 | . 2 . 3 Tunneler 9 | 9 . . . Recycler 6 | 1 4 1 . Operator 1 | . . . 1 Watcher 2 | . 2 . . Swarmer 4 | . 3 1 . Grunt 13 | . 2 . 11 Best Kill Streak 6 | 4 4 1 6 Combat Bots Only 4 | . 3 1 4 Max Kills in Single Turn 3 | 1 1 1 3 Gunslinging . | . . . . Exploded 3 | . . . 3 Melee . | . . . . Uniques/NPCs Destroyed . | . . . . Combat | -11 -10 -10 -9 -------- Run | Scr Mat Min Mat Damage Taken 1146 | . 251 9 886 Core 455 | . 53 . 402 Absorbed by Shields . | . . . . Core Remaining (%) 89 | 100 . 78 . Volleys Fired 139 | 44 51 17 27 Largest 2 | 2 2 2 2 Hottest 100 | 60 40 100 100 Shots Fired 265 | 88 102 31 44 Gun 252 | 88 102 28 34 Cannon . | . . . . Launcher 2 | . . . 2 Special 11 | . . 3 8 Kinetic 211 | 73 102 28 8 Thermal 11 | . . 3 8 Explosive 2 | . . . 2 Electromagnetic 41 | 15 . . 26 Robot Hit Streak 35 | 8 11 9 35 Robot Miss Streak 3 | 3 3 3 2 Penetration Max . | . . . . Secondary Targets . | . . . . Shots Hit Robots 159 | 52 63 20 24 Core Hits 90 | 25 31 6 28 Critical Hits 1 | . 1 . . Critical Kills 1 | . 1 . . Critical Parts Destroyed . | . . . . Melee Attacks 2 | . . 2 . Impact . | . . . . Slashing . | . . . . Piercing . | . . . . Sneak Attacks 2 | . . 2 . Combat Hostiles . | . . . . Follow-up Attacks . | . . . . Damage Inflicted 2231 | 523 492 123 1093 Guns 1514 | 491 492 123 408 Cannons . | . . . . Explosions 697 | 32 . . 665 Melee . | . . . . Ramming 20 | . . . 20 Kinetic 996 | 332 492 123 49 Thermal 189 | 32 . . 157 Explosive 508 | . . . 508 Electromagnetic 518 | 159 . . 359 Impact . | . . . . Slashing . | . . . . Piercing . | . . . . Highest Corruption 3 | . 1 1 3 Average Corruption 1 | . 1 1 2 Corruption Purged . | . . . . Effects 3 | . . 3 . Message Errors 2 | . . 2 . Data Loss (minor) 1 | . . 1 . Overload Shots . | . . . . Overflow Damage 73 | 2 . . 71 Projectiles . | . . . . Explosions 73 | 2 . . 71 Melee . | . . . . Knockbacks . | . . . . Impact . | . . . . Kinetic . | . . . . Secondary . | . . . . Self-Inflicted Damage 205 | . . . 205 Shots 4 | . . . 4 Rammed 6 | . . . 6 Targets Rammed 6 | . . . 6 Kicked . | . . . . Crushed . | . . . . Highest Temperature 354 | 60 18 42 354 Average Temperature 34 | 33 7 10 52 Received Heat Transfer 300 | . 72 . 228 Effects 1 | . . . 1 Short Circuit 1 | . . . 1 Siege Activations . | . . . . Robots Corrupted . | . . . . Combat Hostiles . | . . . . Parts Fried . | . . . . Impact Corruptions . | . . . . Robots Melted . | . . . . Combat Hostiles . | . . . . Parts Melted . | . . . . Heat Transferred 250 | 50 . . 200 Parts Sabotaged . | . . . . Parts Stolen . | . . . . Parts Stripped . | . . . . Power Chain Reactions 3 | 1 . . 2 Missiles Intercepted . | . . . . Alert | -11 -10 -10 -9 ------- Run | Scr Mat Min Mat Peak Influence 178 | 70 137 53 178 Initial 53 | . . 53 9 Average 31 | 7 74 45 45 Maximum Alert Level . | . . . . Low Security (%) 100 | 100 100 100 100 Level 1 . | . . . . Level 2 . | . . . . Level 3 . | . . . . Level 4 . | . . . . Level 5 . | . . . . High Security . | . . . . Max Security . | . . . . Squads Dispatched 4 | . 2 . 2 Investigation 2 | . . . 2 Extermination . | . . . . Reinforcement 2 | . 2 . . Assault . | . . . . Garrison . | . . . . Intercept . | . . . . Construction Impeded . | . . . . Haulers Reinforced . | . . . . Stealth | -11 -10 -10 -9 --------- Run | Scr Mat Min Mat Distress Signals 3 | . 1 1 1 Communications Jammed . | . . . . Distress Signals . | . . . . Times Spotted 42 | . 16 3 23 Peak Tracking Total 8 | . 4 2 8 Tactical Retreats 3 | . . . 3 Traps | -11 -10 -10 -9 ------- Run | Scr Mat Min Mat Traps Triggered 4 | . 1 . 3 Indirectly . | . . . . Trap Hack Attempts . | . . . . Triggered . | . . . . Disarmed . | . . . . Reprogrammed . | . . . . Reused . | . . . . Traps Extracted . | . . . . Installed . | . . . . Triggered . | . . . . Machines | -11 -10 -10 -9 ---------- Run | Scr Mat Min Mat Machines Disabled 3 | . . . 3 Max in Single Turn 1 | . . . 1 Machines Sabotaged . | . . . . Garrisons Compromised . | . . . . Overloaded Fab Kills . | . . . . Fab Network Shutdowns . | . . . . Hacking | -11 -10 -10 -9 --------- Run | Scr Mat Min Mat Machines Accessed 6 | . 3 . 3 Terminals 5 | . 2 . 3 Fabricators . | . . . . Repair Stations . | . . . . Recycling Units 1 | . 1 . . Scanalyzers . | . . . . Garrison Access . | . . . . Total Hacks 17 | . 8 . 9 Successful 9 | . 4 . 5 Failed 7 | . 4 . 3 Catastrophic . | . . . . Database Lockouts 1 | . . . 1 Manual 16 | . 7 . 9 Terminals 16 | . 7 . 9 Fabricators . | . . . . Repair Stations . | . . . . Recycling Units 1 | . 1 . . Scanalyzers . | . . . . Garrison Access . | . . . . Terminal Hacks 5 | . 3 . 2 Robot Analysis 5 | . 3 . 2 Fabricator Hacks . | . . . . Repair Station Hacks . | . . . . Recycling Unit Hacks 1 | . 1 . . Retrieve Components 1 | . 1 . . Scanalyzer . | . . . . Garrison Access Hacks . | . . . . Unauthorized Hacks 3 | . . . 3 Terminals 3 | . . . 3 Track 2 | . . . 2 Operators 1 | . . . 1 Fabricators . | . . . . Repair Stations . | . . . . Recycling Units . | . . . . Scanalyzers . | . . . . Garrison Access . | . . . . Data Cores Recovered . | . . . . Used . | . . . . Hacking Detections 5 | . 2 . 3 Full Trace Events 1 | . . . 1 Feedback Events . | . . . . Feedback Blocked . | . . . . Robot Schematics Acquired . | . . . . Robots Built . | . . . . Matter . | . . . . Time . | . . . . Total Robot Build Rating . | . . . . Part Schematics Acquired . | . . . . Parts Built . | . . . . Matter . | . . . . Time . | . . . . Total Part Build Rating . | . . . . Parts Repaired . | . . . . Time . | . . . . Parts Recycled . | . . . . Recycled Matter . | . . . . Retrieved Matter . | . . . . Retrieved Components 9 | . 9 . . Parts Scanalyzed . | . . . . Part Schematics Acquired . | . . . . Parts Damaged . | . . . . Bothacking | -11 -10 -10 -9 ------------ Run | Scr Mat Min Mat Used RIF Installer . | . . . . Robots Hacked 1 | . . 1 . Non-combat . | . . . . Combat 1 | . . 1 . Robot Hacks Applied 1 | . . 1 . parse_system 1 | . . 1 . Relay Couplers Released . | . . . . Robots Rewired . | . . . . Allies Hacked . | . . . . Hacks Repelled . | . . . . Allies | -11 -10 -10 -9 -------- Run | Scr Mat Min Mat Total Allies . | . . . . Largest Group . | . . . . Highest-Rated Group . | . . . . Highest-Rated Ally . | . . . . Total Orders . | . . . . Ally Attacks . | . . . . Total Damage . | . . . . Kills . | . . . . Allies Corrupted . | . . . . Allies Melted . | . . . . Intel | -11 -10 -10 -9 ------- Run | Scr Mat Min Mat Robot Analysis Total 5 | . 3 . 2 Derelict Logs Recovered 1 | . . 1 . Drone Launches . | . . . . Drone Recoveries . | . . . . Exploration | -11 -10 -10 -9 ------------- Run | Scr Mat Min Mat Turns Passed 4760 | 2259 703 528 1270 Spaces Moved 1693 | 183 475 518 517 Core 55 | . . . 55 Treads . | . . . . Legs . | . . . . Wheels 537 | 183 354 . . Hover 1101 | . 121 518 462 Flight . | . . . . Fastest Speed 50 | 100 56 56 50 Average Speed 77 | 100 79 56 88 Slowest Speed 180 | 100 125 56 180 Overloaded Moves . | . . . . Propulsion Burnouts . | . . . . Robots Hopped . | . . . . Cave-ins Triggered . | . . . . Exploration Rate (%) 47 | 4 59 95 30 Regions Visited 3 Branch Regions 1 Pre-discovered Areas . | . . . . Known Exits Taken . | . . . . Unknown Exits Taken 3 | 1 1 1 . Scrap Searched 1 | . . 1 . Spaces Dug 11 | . . 3 8 Terrain Destroyed 71 | 6 . 3 62 Melee . | . . . . Projectile 11 | . . 3 8 AOE 60 | 6 . . 54 Terrain Rammed . | . . . . Walls Destroyed . | . . . . Machines Disabled . | . . . . Actions | -11 -10 -10 -9 --------- Run | Scr Mat Min Mat Total 4896 | 2185 722 720 1269 Wait 2991 | 1945 173 178 695 Move 1690 | 182 474 517 517 Hop . | . . . . Pick Up 10 | 5 3 1 1 Fast Attach 11 | . 3 . 8 Attach 4 | 1 . . 3 Detach 1 | . . . 1 Swap 20 | 4 8 4 4 Drop 22 | 4 10 1 7 Fire 139 | 44 51 17 27 Melee 2 | . . 2 . Ram 6 | . . . 6 Kick . | . . . . Crush . | . . . . Escape Stasis . | . . . . Rewire . | . . . . Trap . | . . . . Miscellaneous . | . . . . Route ------- -11/Scrapyard -10/Materials (discovered 2 exits: *Mat / [*Min]) -10/Mines -9/Materials History --------- Turn | Location | Event 4 | -11/Scrapyard | Discovered new exit (range 2) 2260 | -11/Scrapyard | Entered Materials 2261 | -10/Materials | Build established: Mutant 2740 | -10/Materials | Discovered new exit (range 14) 2932 | -10/Materials | Discovered new exit (range 15) 2958 | -10/Materials | Build established: Scavenger-Mutant 2963 | -10/Materials | Entered Mines 3021 | -10/Mines | Met a Derelict bent on vengeance 3151 | -10/Mines | Discovered new exit (range 10) 3201 | -10/Mines | Learned Materials stockpile data 3491 | -10/Mines | Entered Materials 3491 | -9/Materials | Evolved 2 slots: Utility x2 3798 | -9/Materials | Build established: Scavenger-Scout 4147 | -9/Materials | Build established: Scavenger-Mutant 4351 | -9/Materials | Central database locked down 4746 | -9/Materials | Core integrity fell below 50% 4755 | -9/Materials | Core integrity fell below 20% 4761 | -9/Materials | Destroyed by Y-45 Defender with Heavy Assault Rifle Last Messages --------------- 04725_ Dropped Datajack. 04726_ Dropped Sml. Storage Unit. 04736_ Triggered Shock Trap. 04736_ The floor emits a surge of raw power. 04736_ System corrupted (+2). 04744_ Triggered Shock Trap. 04744_ The floor emits a surge of raw power. 04744_ System corrupted (+1). 04745_ Slammed into Y-45 Defender. 04745_ Destabilizing: Core damaged (-12). 04745_ Triggered Alarm Trap. 04745_ An alarm sounds. 04745_ ALERT: Alarm triggered, dispatching investigation squad. 04746_ Slammed into Y-45 Defender. 04747_ Imp. Terrain Scanner destroyed. 04748_ Slammed into Y-45 Defender. 04750_ Imp. Sensor Array destroyed. 04754_ Acquired Imp. Terrain Scan Processor. 04758_ T-07 Excavator destroyed. [Achievement: Omniscient Cartographer] Map ----- +----------------------------------------------------+ | | | | | | | | | ?????????????????????????????????????????????????? | | ?????????????????????????????????????????????????? | | ?????????????????????????????????????????????????? | | ?????????????????????????????????????????????????? | | ?????????????????????????????????????????????????? | | ?????????????????????????????????????????????????? | | ?????????????????????????????????????????????????? | | ?????????????????????????????????????????????????? | | ????????????????????#????#????????????#???#??????? | | ????????????#?????????????????????????#??????????? | | ?????????????????????????????????????????#???????? | | ?????????????????#???????????????????????????????? | | ???????????#?#?#?????????????????#???????????????? | | ?????????#??#???????????#####??#????????????? ???? | | ?????????????#??????????? #?#??????????#???????? | | ?????????????????????#??? ??????????????? ????? | | ?????????????????#???##?# ????#?????#?????#???? | | ??????????#???#???????##?# #?##???##########??? | | ???????????????? ????????# #??????# #????# | | ???????????????????????### ####??## ###### | | ???????????????????##### Y ##???# """ + | | ?????????? ????????#! !!@ ###### """ # ? | | ??????????????? ??##! *%| s%s%% + """ # ?? | | ?????????#?????????#!! = Y%### # # ##### | | ???????????????????#!! ### #####+## # | | ?????????#??#??????#[[ #######?# + | | ?o????????????????##[[ ##?#??#?# # | | ??????#??????????#?#####?????#?# # | | ?????????????o? #?????? ??#######+######## # | | ??????????????? ?????? ????# #?#?# # | | ????????????????? ??????? ?# #??## # | | ???????!????????#?????? ???# ###?# # | | ????????????????? ????? ? ?# """ #?### # | | ??????????????????????? ? ?# """"" ##### ####/ | | ??????????????????"??? ????# """"" #?#?# #### | | ????????????????#??"???????#! """"" ##### #### | | ??????????????? ?????##????# """? ##### ####[ | | ????????????????????###################### ####% | | ??????????????????? " g * | | ??????????????????? "%" = a !=/ | | ??????????????????? " [t* r | | ????????????????????#?############+######+ | | ???????????????????#?????#??### # | | ?????????????????????#?#??#?#?# """ w | | ?????????????????????????###### """ u | | ????????????????? ????????#??## """ | | +----------------------------------------------------+ Best States ------------- Heat Dissipation 28 Energy Generation 10 Energy Capacity 125 Matter Stores 300 Matter Capacity 300 Sight Range 16 Robot Scan Range 13 Terrain Scan Range 16 Terrain Scan Density 285 Evasion (%) 53 Item Schematics ----------------- None Robot Schematics ------------------ None Fabricated ------------ Nothing Alien Tech Used ----------------- None Achievements -------------- Omniscient Cartographer Challenges ------------ None Game ------ Seed SwordTargetScrap Manual? 0 Play Time 00:24:29 Cumulative 78.8 hours Start 2022.01.17 @ 12:52:25 End 2022.01.17 @ 13:15:07 Sessions 1 Manual Loads 0 Difficulty Rogue Special Mode None Game No. 93 Rogue 93 Adventurer 0 Explorer 0 Win Type - Total 0 Types 0/0/0/0/0/0/0/0/0 Lore% 51 Gallery% 49 Achievement% 40 Wizard Run 0 Options --------- ASCII 0 Keyboard 0 Movement Numpad Keybinds 0 Fullscreen 1 Font 18/X11Bold Map View 76x50 Tactical HUD 1 Map Filters NONE Filters NONE Steam 1 RUN: 07b970c3-8065-4a04-b9df-77c2eec42809